bitfinex-derivatives/quotes_ETHF0:USTF0_20240923
["timestamp","ask_amount","ask_price","bid_price","bid_amount"]
[1727078952886,1.2225,2646.5,2645.8,0.3657]
[1727078953082,3.81,2646.6,2645.8,0.3657]
[1727078953286,0.94469,2646.5,2645.8,0.3657]
[1727078953491,0.37794,2646.1,2645.8,0.3657]
[1727078953790,0.94477,2646.3,2645.8,0.3657]
[1727078953985,0.37796,2645.9,2645.8,0.3657]
[1727078954882,0.37795,2646.0,2645.8,0.3657]
[1727078955883,0.37796,2645.9,2645.8,0.3657]
[1727078956283,0.37799,2645.7,2645.6,0.3887]
[1727078956477,4.15266,2646.1,2645.6,0.3887]
[1727078956478,0.37798,2645.8,2645.6,0.3887]
[1727078956683,0.37796,2645.9,2645.6,0.3887]
[1727078957081,0.37798,2645.8,2645.6,0.3887]
[1727078957288,4.15263,2646.1,2645.6,0.3887]
[1727078957483,0.37798,2645.8,2645.6,0.3887]
[1727078958786,0.37799,2645.7,2645.6,0.3887]
[1727078960701,0.37801,2645.5,2645.4,33.2078]
[1727078961192,0.9449,2645.9,2645.4,33.2078]
[1727078961193,0.37799,2645.7,2645.4,33.2078]
[1727078961492,0.37798,2645.8,2645.4,33.2078]
[1727078961692,0.37801,2645.6,2645.4,33.2078]
[1727078961882,0.37801,2645.6,2645.4,30.0]
[1727078962282,0.37801,2645.5,2645.2,1.1203]
[1727078962885,0.37801,2645.5,2645.3,30.0]
[1727078964500,0.26993,2645.4,2645.3,30.0]
[1727078968498,0.94494,2645.8,2645.3,30.0]
[1727078968690,4.15274,2645.8,2645.3,30.0]
[1727078968893,0.37802,2645.5,2645.3,30.0]
[1727078969293,0.37804,2645.4,2645.2,1.1203]
[1727078969700,0.37804,2645.4,2645.2,31.1203]
[1727078970198,0.2778,2645.9,2645.2,34.9003]
[1727078970404,0.37801,2645.6,2645.2,31.1203]
[1727078970589,0.37801,2645.6,2645.2,31.49835]
[1727078971295,0.37797,2645.9,2645.5,3.58581]
[1727078971500,0.37796,2645.9,2645.5,3.5858]
[1727078971801,0.94476,2646.3,2645.7,0.37798]
[1727078972000,0.94476,2646.3,2645.8,0.7514]
[1727078972206,0.94476,2646.3,2645.8,1.1448]
[1727078972498,0.37795,2646.0,2645.8,3.2048]
[1727078972690,0.94476,2646.3,2645.8,3.2048]
[1727078972896,4.127,2646.5,2645.8,3.2048]
[1727078973097,0.37792,2646.2,2645.8,3.58276]
[1727078974394,0.37791,2646.3,2645.8,3.2048]
[1727078974701,0.37791,2646.3,2646.1,2.06]
[1727078975306,0.37791,2646.2,2646.1,2.06]
[1727078975709,0.37796,2645.9,2645.8,1.1448]
[1727078975892,0.37795,2646.0,2645.8,1.1448]
[1727078976406,0.37796,2645.9,2645.8,1.1448]
[1727078976800,0.37795,2646.0,2645.8,1.1448]
[1727078977010,0.37795,2646.0,2645.8,3.2048]
[1727078977197,0.37796,2645.9,2645.8,3.2048]
[1727078977502,0.37795,2646.0,2645.8,3.2048]
[1727078977904,0.37794,2646.1,2645.8,3.2048]
[1727078978106,0.37795,2646.0,2645.8,3.2048]
[1727078978304,3.36321445,2646.4,2645.8,3.2048]
[1727078978500,0.37796,2646.0,2645.8,3.2048]
[1727078980306,0.37796,2645.9,2645.8,3.2048]
[1727078980499,0.37795,2646.0,2645.8,3.2048]
[1727078982218,0.37796,2645.9,2645.8,3.2048]
[1727078982709,0.37796,2645.9,2645.8,6.984]
[1727078984103,0.94476,2646.3,2645.8,6.984]
[1727078984307,0.37795,2646.0,2645.8,3.2048]
[1727078984612,0.37794,2646.0,2645.8,3.2048]
[1727078984808,5.07172,2646.5,2645.8,3.58277]
[1727078985009,5.07172,2646.5,2646.3,2.06]
[1727078985010,4.127,2646.5,2646.3,2.06]
[1727078985200,0.37788,2646.5,2646.4,0.3759]
[1727078986512,0.37788,2646.5,2646.4,0.7471]
[1727078989113,0.26978,2646.5,2646.4,0.7471]
[1727078998705,7.3348,2647.1,2646.4,13.7333]
[1727078998905,2.711107,2647.4,2646.9,2.06]
[1727078999111,0.37776,2647.4,2647.2,2.06]
[1727078999424,3.2078,2647.5,2647.2,2.06]
[1727078999612,3.2078,2647.5,2647.4,2.06]
[1727078999613,3.58553,2647.5,2647.4,2.06]
[1727079000310,3.4854,2647.8,2647.4,2.06]
[1727079000517,0.37773,2647.5,2647.4,2.06]
[1727079001923,3.58553,2647.5,2647.4,2.06]
[1727079003618,0.37774,2647.4,2647.3,0.3753]
[1727079003826,0.37779,2647.1,2647.0,5.6409]
[1727079004014,0.37779,2647.1,2647.0,2.4331]
[1727079004620,1.32226,2647.1,2647.0,2.4331]
[1727079005712,1.32226,2647.1,2647.0,0.3731]
[1727079006019,1.32226,2647.1,2646.8,2.4404]
[1727079006020,0.37781,2646.9,2646.8,2.4404]
[1727079006216,0.37781,2646.9,2646.8,2.06]
[1727079007622,1.32235,2646.9,2646.8,2.06]
[1727079008310,1.32235,2646.9,2646.5,2.8296]
[1727079008311,0.37786,2646.6,2646.5,2.8296]
[1727079008717,0.37786,2646.6,2646.5,2.4492]
[1727079011022,0.37791,2646.2,2646.1,2.4283]
[1727079011220,0.37791,2646.2,2646.1,2.7885]
[1727079012215,0.37791,2646.3,2646.1,2.7885]
[1727079012420,0.37785,2646.7,2646.2,2.06]
[1727079012616,4.127,2646.9,2646.6,2.06]
[1727079012815,4.127,2646.9,2646.8,2.06]
[1727079013021,3.2078,2647.0,2646.8,2.06]
[1727079013221,0.37778,2647.2,2646.8,2.06]
[1727079013417,0.37778,2647.2,2647.0,2.06]
[1727079013621,0.37779,2647.1,2647.0,2.06]
[1727079013824,0.26969,2647.1,2647.0,2.06]
[1727079014714,3.2078,2647.3,2646.8,2.06]
[1727079014914,0.3778,2647.0,2646.8,2.06]
[1727079015323,0.37778,2647.2,2646.8,2.43783]
[1727079015621,0.37778,2647.2,2646.7,1.0927]
[1727079015622,3.2078,2647.5,2647.1,2.06]
[1727079015832,0.37775,2647.4,2647.2,30.7963]
[1727079016220,0.37776,2647.3,2647.2,30.7963]
[1727079017328,0.37776,2647.3,2647.2,30.3968]
[1727079017721,0.3778,2647.0,2646.9,2.06]
[1727079017929,0.3778,2647.0,2646.9,2.4589]
[1727079018128,4.1554,2647.0,2646.9,2.4589]
[1727079018918,4.1554,2647.0,2646.9,0.3989]
[1727079021026,0.3778,2647.0,2646.9,0.3989]
[1727079021330,0.37778,2647.2,2646.9,0.3989]
[1727079021630,4.15215,2647.5,2647.0,2.06]
[1727079021829,0.37779,2647.1,2647.0,2.06]
[1727079022226,3.36379772,2647.5,2647.0,2.06]
[1727079022435,0.37777,2647.3,2647.0,2.06]
[1727079022625,3.2078,2647.5,2647.0,2.06]
[1727079022821,0.3778,2647.0,2646.9,0.3989]
[1727079023341,4.1554,2647.0,2646.9,0.3989]
[1727079024038,1.32231,2647.0,2646.9,0.3989]
[1727079024536,0.3778,2647.0,2646.9,0.3989]
[1727079026130,0.37779,2647.1,2646.9,0.3989]
[1727079026725,5.12931881,2647.4,2646.9,0.3989]
[1727079027128,0.3778,2647.0,2646.9,0.3989]
[1727079028923,8.30771,2647.0,2646.9,0.3989]
[1727079029124,4.53011,2647.0,2646.9,0.3989]
[1727079029328,8.30771,2647.0,2646.9,0.3989]
[1727079030831,4.53011,2647.0,2646.9,0.3989]
[1727079031237,8.30771,2647.0,2646.9,0.3989]
[1727079031445,1.32231,2647.0,2646.9,0.3989]
[1727079031743,5.09991,2647.0,2646.9,0.3989]
[1727079031943,1.32231,2647.0,2646.9,0.3989]
[1727079032644,8.30771,2647.0,2646.9,0.3989]
[1727079032939,0.3778,2647.0,2646.9,0.3989]
[1727079038044,0.37779,2647.1,2646.9,0.3989]
[1727079038241,6.585667,2647.5,2646.9,0.3989]
[1727079038242,0.3778,2647.0,2646.9,0.3989]
[1727079038638,0.2697,2647.0,2646.9,0.3989]
[1727079040452,4.99181,2647.0,2646.9,0.3989]
[1727079040654,4.99181,2647.0,2646.5,0.98087314]
[1727079040655,0.37786,2646.6,2646.5,0.98087314]
[1727079040945,0.37787,2646.5,2646.4,3.2078]
[1727079041446,4.15627,2646.5,2646.4,3.2078]
[1727079041755,0.37787,2646.5,2646.4,3.2078]
[1727079041943,4.15627,2646.5,2646.4,3.2078]
[1727079043150,0.3779,2646.4,2646.2,0.98087314]
[1727079043547,0.94464,2646.7,2646.2,0.98087314]
[1727079043744,3.2078,2646.4,2646.2,0.98087314]
[1727079043949,4.2089,2646.3,2646.2,0.3444]
[1727079044146,0.37791,2646.2,2646.1,1.48491487]
[1727079044344,4.15711,2646.2,2646.1,1.48491487]
[1727079044540,0.37793,2646.1,2646.0,1.97826446]
[1727079044746,9.80613,2646.1,2646.0,1.97826446]
[1727079045038,15.80613,2646.1,2646.0,1.97826446]
[1727079045556,0.37796,2645.9,2645.8,2.47283057]
[1727079046049,4.15716,2645.9,2645.8,2.47283057]
[1727079047247,10.15716,2645.9,2645.8,2.47283057]
[1727079047451,0.378,2645.6,2645.5,2.96739669]
[1727079047855,4.158,2645.6,2645.5,2.96739669]
[1727079049055,6.218,2645.6,2645.5,2.96739669]
[1727079049647,6.218,2645.6,2645.2,0.3687]
[1727079049648,0.37803,2645.4,2645.2,0.3687]
[1727079051046,0.37804,2645.3,2645.2,0.3687]
[1727079051653,2.06,2645.4,2645.1,0.3662]
[1727079051851,0.37805,2645.3,2645.1,0.3662]
[1727079052051,7.0388,2645.7,2645.1,0.3662]
[1727079052650,0.37802,2645.5,2645.1,0.3662]
[1727079053046,0.37802,2645.5,2645.4,3.2078]
[1727079053248,2.811437,2646.1,2645.4,5.64582]
[1727079053449,2.433507,2646.1,2645.5,0.7482]
[1727079053856,0.37797,2645.9,2645.6,30.0]
[1727079054048,5.641307,2646.1,2645.7,0.3835]
[1727079054254,0.37796,2645.9,2645.7,0.3835]
[1727079054756,0.378,2645.6,2645.5,0.3855]
[1727079055054,0.378,2645.6,2645.5,0.769]
[1727079055271,0.378,2645.6,2645.5,30.769]
[1727079055649,0.378,2645.6,2645.5,0.769]
[1727079055846,0.37805,2645.3,2644.9,3.2078]
[1727079056153,0.37807,2645.2,2645.0,30.3723]
[1727079057052,0.37806,2645.2,2645.0,30.3723]
[1727079057263,0.37804,2645.4,2645.0,30.3723]
[1727079057460,4.054,2645.6,2645.0,30.3723]
[1727079057756,0.37802,2645.5,2645.0,30.3723]
[1727079058840,0.37801,2645.6,2645.0,30.3723]
[1727079059246,0.37802,2645.5,2645.0,30.3723]
[1727079060051,0.37801,2645.6,2645.0,30.3723]
[1727079060445,12.33367,2646.0,2645.2,5.2678]
[1727079060651,0.37798,2645.8,2645.3,0.3598]
[1727079060851,0.37799,2645.7,2645.4,0.3927]
[1727079061050,0.378,2645.6,2645.5,0.3787]
[1727079061355,0.37801,2645.5,2645.4,0.3927]
[1727079062557,4.15801,2645.5,2645.4,0.3927]
[1727079062752,4.15801,2645.5,2645.2,3.2078]
[1727079062753,0.37804,2645.3,2645.2,3.2078]
[1727079063350,2.06,2645.5,2645.1,0.7723]
[1727079063552,0.37805,2645.3,2645.1,0.7723]
[1727079063749,0.37806,2645.2,2645.1,0.7723]
[1727079064253,0.37805,2645.3,2645.1,0.7723]
[1727079064452,1.22204,2645.6,2645.1,0.7723]
[1727079064653,0.37806,2645.2,2645.1,0.7723]
[1727079064853,4.15886,2645.2,2645.1,0.7723]
[1727079065050,4.15886,2645.2,2645.1,0.3936]
[1727079065864,3.7808,2645.2,2644.5,3.5679]
[1727079066059,0.37811,2644.9,2644.7,0.3945]
[1727079067464,0.37809,2645.0,2644.7,0.3945]
[1727079067864,0.37809,2645.0,2644.9,3.2078]
[1727079068766,6.115,2645.3,2644.9,3.2078]
[1727079068767,0.37805,2645.3,2644.9,5.8408]
[1727079068966,0.37805,2645.3,2645.0,0.7443]
[1727079069266,4.055,2645.5,2645.0,0.7443]
[1727079069267,0.37804,2645.4,2645.0,0.7443]
[1727079069467,0.37807,2645.1,2645.0,0.7443]
[1727079071557,2.06,2645.4,2645.0,0.7443]
[1727079071758,4.055,2645.5,2645.0,0.7443]
[1727079071959,0.37804,2645.4,2645.0,0.7443]
[1727079072270,4.055,2645.5,2645.0,0.7443]
[1727079072271,0.37804,2645.3,2645.0,0.7443]
[1727079073564,0.37806,2645.2,2645.0,0.7443]
[1727079073758,0.37807,2645.1,2645.0,0.7443]
[1727079074467,0.37806,2645.2,2645.0,0.7443]
[1727079074866,0.37807,2645.1,2645.0,0.3618]
[1727079075263,0.37806,2645.2,2645.0,0.3618]
[1727079075466,2.06,2645.3,2645.0,0.3618]
[1727079075864,0.37806,2645.2,2645.0,0.3618]
[1727079076067,0.37807,2645.1,2645.0,0.3618]
[1727079079169,0.37807,2645.2,2645.0,0.3618]
[1727079079667,3.00511,2645.4,2645.0,0.3618]
[1727079079975,3.2078,2645.3,2644.7,0.3945]
[1727079080159,3.2078,2645.3,2644.8,0.7492]
[1727079080367,0.94515,2645.2,2644.8,0.7492]
[1727079080563,0.3781,2644.9,2644.8,0.3619]
[1727079081573,1.22195,2645.2,2644.8,0.3619]
[1727079081574,0.37807,2645.2,2644.8,0.3619]
[1727079081874,7.3348,2645.6,2644.8,6.00781]
[1727079082080,0.37803,2645.4,2644.8,5.6297]
[1727079082579,0.37803,2645.4,2644.8,6.00781]
[1727079082968,0.37803,2645.4,2644.8,5.6297]
[1727079083173,0.37804,2645.3,2644.8,5.6297]
[1727079083666,0.37806,2645.2,2644.8,5.6297]
[1727079083863,0.37803,2645.4,2644.8,3.94781]
[1727079084067,0.37805,2645.3,2644.8,3.5697]
[1727079084276,0.37802,2645.5,2644.9,1.32809]
[1727079084480,0.37804,2645.4,2644.9,1.32809]
[1727079085564,0.37805,2645.3,2644.9,0.95]
[1727079086276,0.95,2645.4,2644.9,1.32809]
[1727079086479,1.32804,2645.4,2644.9,1.32809]
[1727079086772,0.95,2645.4,2645.0,0.37808]
[1727079086972,0.95,2645.4,2645.1,0.3947]
[1727079087179,1.32803,2645.4,2645.2,0.3849]
[1727079087373,1.32803,2645.4,2645.2,0.755]
[1727079088078,0.37803,2645.4,2645.2,0.755]
[1727079088281,0.37804,2645.3,2645.2,0.755]
[1727079089571,0.37803,2645.4,2645.2,0.755]
[1727079090175,0.95,2645.5,2645.2,0.755]
[1727079090375,0.37804,2645.4,2645.2,0.755]
[1727079090576,1.32803,2645.5,2645.2,0.755]
[1727079091183,6.560507,2646.0,2645.4,0.95]
[1727079091477,7.510507,2646.4,2645.9,0.95]
[1727079091671,4.127,2646.4,2646.0,1.53644]
[1727079091872,1.32787,2646.6,2646.0,1.53644]
[1727079092077,0.37788,2646.5,2646.1,30.0]
[1727079092274,0.95,2646.6,2646.2,3.2078]
[1727079092481,0.37789,2646.4,2646.2,3.2078]
[1727079092779,1.32786,2646.6,2646.2,3.2078]
[1727079092980,0.95,2646.6,2646.2,3.2078]
[1727079093184,0.95,2646.6,2646.3,30.0]
[1727079093582,0.95,2646.6,2646.2,3.2078]
[1727079094189,0.95,2646.6,2646.2,30.0]
[1727079094385,4.58784,2646.7,2646.2,30.0]
[1727079095487,4.21,2646.7,2646.2,30.0]
[1727079095686,4.58784,2646.7,2646.2,30.0]
[1727079096589,4.21,2646.7,2646.2,30.0]
[1727079097577,4.21,2646.7,2646.3,0.3779]
[1727079097774,4.4039,2647.2,2646.5,3.2078]
[1727079097985,0.65468,2647.2,2646.6,1.1555]
[1727079098182,5.2678,2647.3,2646.9,3.58561]
[1727079098487,5.2678,2647.3,2646.9,3.2078]
[1727079098981,5.64556,2647.3,2646.9,3.2078]
[1727079099187,5.2678,2647.3,2646.9,3.2078]
[1727079099390,2.06,2647.3,2646.9,3.2078]
[1727079099685,4.127,2648.2,2647.2,5.2678]
[1727079099890,4.127,2648.2,2646.9,6.0]
[1727079099891,4.127,2648.5,2647.8,2.06]
[1727079100183,5.2678,2648.6,2647.9,30.7581]
[1727079100390,5.2678,2648.6,2647.9,31.1413]
[1727079100391,0.37761,2648.4,2647.9,31.1413]
[1727079100578,2.06,2648.4,2647.9,31.1413]
[1727079100784,0.37763,2648.3,2647.9,31.1413]
[1727079100975,2.06,2648.4,2647.9,31.1413]
[1727079101880,2.4376,2648.4,2647.9,31.1413]
[1727079102891,3.2078,2648.6,2647.9,30.7478]
[1727079102892,2.06,2648.2,2647.9,30.7478]
[1727079103895,0.37764,2648.1,2647.9,0.7478]
[1727079104685,2.43766,2648.0,2647.9,0.3646]
[1727079105188,4.15446,2648.0,2647.9,0.3646]
[1727079105383,6.21446,2648.0,2647.9,0.3646]
[1727079105782,6.21446,2648.0,2647.4,3.6042]
[1727079105783,5.8368,2648.0,2647.4,3.6042]
[1727079106081,2.06,2647.7,2647.5,0.3938]
[1727079106687,2.43771,2647.7,2647.5,0.3938]
[1727079107093,2.06,2647.7,2647.5,0.3938]
[1727079107483,2.43767,2648.0,2647.5,0.3938]
[1727079107800,0.37771,2647.6,2647.5,0.3938]
[1727079107988,0.3777,2647.7,2647.5,0.3938]
[1727079108497,2.43769,2647.8,2647.5,0.3938]
[1727079109395,0.3777,2647.7,2647.5,0.3938]
[1727079109691,2.43769,2647.8,2647.5,0.3938]
[1727079109991,0.37768,2647.9,2647.5,0.3938]
[1727079110896,0.37769,2647.8,2647.5,0.3938]
[1727079111782,0.3777,2647.7,2647.5,0.3938]
[1727079112889,0.2696,2647.7,2647.5,0.3938]
[1727079114781,0.37769,2647.8,2647.5,0.3938]
[1727079114986,0.37768,2647.9,2647.5,0.3938]
[1727079115186,5.64547,2648.0,2647.5,0.3938]
[1727079115386,3.2078,2648.0,2647.5,0.77152]
[1727079117092,3.58546,2648.0,2647.5,0.3938]
[1727079117390,3.2078,2648.0,2647.5,0.3938]
[1727079117592,0.37771,2647.6,2647.5,0.3938]
[1727079119288,0.37774,2647.5,2647.2,0.393]
[1727079120191,2.06,2648.0,2647.3,3.2078]
[1727079120596,0.37776,2647.3,2647.2,0.393]
[1727079120799,2.43776,2647.3,2647.2,0.393]
[1727079120992,0.37777,2647.2,2647.1,0.3737]
[1727079121597,10.72204,2647.2,2646.6,0.7768]
[1727079121797,0.37784,2646.7,2646.6,1.1748]
[1727079122092,0.37784,2646.7,2646.6,0.398]
[1727079122093,2.43784,2646.7,2646.6,0.398]
[1727079123289,0.37784,2646.7,2646.6,0.398]
[1727079124793,3.2078,2646.8,2646.2,30.0]
[1727079125097,0.37788,2646.5,2646.3,0.3988]
[1727079125690,0.37788,2646.5,2645.7,5.64578]
[1727079125691,0.37789,2646.4,2645.7,3.2078]
[1727079126001,3.2078,2646.1,2645.8,0.3988]
[1727079126200,2.43795,2646.0,2645.8,0.3988]
[1727079126904,0.378,2645.7,2645.4,0.756]
[1727079127104,5.2678,2645.9,2645.4,0.756]
[1727079127105,0.37801,2645.5,2645.4,0.3708]
[1727079127697,0.37801,2645.6,2645.4,0.3708]
[1727079128131,0.37798,2645.8,2645.4,0.3708]
[1727079128403,3.2078,2645.9,2645.4,0.3708]
[1727079129201,3.58576,2645.9,2645.4,0.3708]
[1727079129510,0.37798,2645.8,2645.4,0.3708]
[1727079129708,0.37797,2645.8,2645.4,0.3708]
[1727079130201,0.37799,2645.7,2645.4,0.3708]
[1727079130399,0.378,2645.6,2645.4,0.3708]
[1727079131605,0.37798,2645.8,2645.4,30.3708]
[1727079132407,3.2078,2645.9,2645.4,30.3708]
[1727079132702,3.58576,2645.9,2645.4,30.3708]
[1727079132902,3.2078,2645.9,2645.4,30.3708]
[1727079133098,0.37798,2645.8,2645.4,30.3708]
[1727079133495,3.2078,2645.9,2645.4,30.3708]
[1727079133496,0.37801,2645.5,2645.4,30.3708]
[1727079134712,0.37801,2645.5,2645.4,0.3708]
[1727079134901,2.43801,2645.6,2645.4,0.3708]
[1727079135206,0.37801,2645.6,2645.4,0.3708]
[1727079136106,0.37799,2645.7,2645.4,0.3708]
[1727079136304,2.06,2645.8,2645.4,0.3708]
[1727079136604,5.2678,2646.0,2645.4,0.3708]
[1727079136807,3.2078,2646.0,2645.4,0.3708]
[1727079137407,3.204,2646.0,2645.4,0.3708]
[1727079139007,0.37797,2645.9,2645.4,0.3708]
[1727079139205,0.37797,2645.8,2645.4,0.3708]
[1727079139823,2.06,2645.9,2645.4,0.3708]
[1727079140113,2.43797,2645.9,2645.4,0.3708]
[1727079140310,2.06,2645.9,2645.4,0.3708]
[1727079140611,7.3348,2646.3,2645.5,30.0]
[1727079140612,2.43794,2646.1,2645.5,30.0]
[1727079140814,2.06,2646.1,2645.5,30.37801]
[1727079141007,0.37792,2646.2,2645.6,0.378]
[1727079141412,0.37793,2646.1,2645.7,0.3825]
[1727079141725,0.37793,2646.1,2645.8,0.3835]
[1727079142014,0.37792,2646.2,2645.9,0.3724]
[1727079142614,4.127,2646.3,2645.9,0.3724]
[1727079142815,2.43789,2646.4,2645.9,0.3724]
[1727079144110,2.06,2646.4,2645.9,0.3724]
[1727079144316,3.2078,2646.6,2645.9,2.4324]
[1727079144515,3.2078,2646.6,2646.2,0.37791]
[1727079144703,3.2078,2646.6,2646.3,0.7681]
[1727079144910,3.2078,2646.6,2646.4,0.3936]
[1727079145113,3.58566,2646.6,2646.4,0.3936]
[1727079145619,3.2078,2646.6,2646.4,0.3936]
[1727079146312,2.06,2646.8,2646.4,0.3936]
[1727079146613,0.37785,2646.7,2646.4,0.3936]
[1727079146915,0.37784,2646.7,2646.4,0.3936]
[1727079147517,0.37786,2646.6,2646.4,0.3936]
[1727079147714,0.37785,2646.7,2646.4,0.3936]
[1727079148420,0.37786,2646.6,2646.4,0.3936]
[1727079148612,0.37785,2646.7,2646.4,0.3936]
[1727079150120,2.43783,2646.8,2646.4,0.3936]
[1727079151510,3.2078,2647.1,2646.5,3.2078]
[1727079151712,3.2078,2647.1,2646.5,3.58567]
[1727079151912,3.2078,2647.1,2646.6,0.37786]
[1727079151913,3.58559,2647.1,2646.6,0.37786]
[1727079152520,3.5856,2647.1,2646.5,3.58567]
[1727079152720,0.37781,2647.0,2646.5,3.2078]
[1727079152923,0.37781,2647.0,2646.6,30.0]
[1727079153722,0.37782,2646.9,2646.6,30.0]
[1727079154223,0.37782,2646.9,2646.6,33.7784]
[1727079154415,0.37782,2646.9,2646.6,30.0]
[1727079154626,0.37783,2646.8,2646.6,30.0]
[1727079154814,0.37782,2646.9,2646.6,30.0]
[1727079155038,2.43781,2647.0,2646.6,30.0]
[1727079155911,2.06,2647.0,2646.6,30.0]
[1727079156112,2.4378,2647.0,2646.6,30.0]
[1727079157313,2.06,2647.0,2646.6,30.0]
[1727079157520,0.37782,2646.9,2646.6,30.0]
[1727079158750,2.43781,2647.0,2646.6,30.0]
[1727079159224,2.06,2647.0,2646.6,30.0]
[1727079159419,0.3778,2647.0,2646.6,30.0]
[1727079159931,0.3778,2647.0,2646.6,30.37786]
[1727079160225,0.3778,2647.0,2646.6,30.0]
[1727079160424,3.2078,2647.1,2646.6,30.0]
[1727079160425,0.37782,2646.9,2646.6,30.0]
[1727079160629,3.00452,2647.0,2646.5,3.2078]
[1727079160830,0.37785,2646.7,2646.5,3.2078]
[1727079161126,0.37786,2646.6,2646.5,3.2078]
[1727079161427,2.43786,2646.6,2646.5,3.2078]
[1727079161628,0.37787,2646.5,2646.4,0.3936]
[1727079162421,2.43786,2646.6,2646.4,0.3936]
[1727079163334,0.37787,2646.5,2646.4,0.3936]
[1727079163930,4.15627,2646.5,2646.4,0.3936]
[1727079164327,5.10096,2646.5,2646.4,0.3936]
[1727079164528,0.37793,2646.1,2645.9,3.2078]
[1727079164923,0.37793,2646.1,2645.9,33.2078]
[1727079165234,0.37794,2646.0,2645.9,33.2078]
[1727079165540,2.43794,2646.0,2645.8,3.9459]
[1727079165723,2.06,2646.0,2645.9,0.3801]
[1727079166031,0.37793,2646.1,2645.9,0.3801]
[1727079166729,0.37794,2646.0,2645.9,0.3801]
[1727079167228,2.06,2646.2,2645.9,0.3801]
[1727079167424,0.37793,2646.2,2645.9,0.3801]
[1727079168332,0.37793,2646.2,2645.9,30.3801]
[1727079169329,0.37793,2646.1,2645.9,30.3801]
[1727079170634,5.64574,2646.0,2645.9,0.3801]
[1727079170841,5.64574,2646.0,2645.4,0.758]
[1727079170842,0.378,2645.7,2645.4,0.758]
[1727079171133,5.6458,2645.6,2645.5,0.3853]
[1727079171328,2.438,2645.6,2645.5,0.3853]
[1727079172135,2.06,2645.6,2645.5,0.3853]
[1727079172335,0.37799,2645.7,2645.5,0.3853]
[1727079173044,0.378,2645.6,2645.5,0.3853]
[1727079174537,4.127,2646.3,2645.6,0.37799]
[1727079174727,4.127,2646.3,2645.5,13.3731]
[1727079174728,4.50491,2646.3,2645.7,0.37798]
[1727079174925,0.37792,2646.2,2645.7,0.37798]
[1727079175532,0.37792,2646.2,2645.8,3.2078]
[1727079175726,0.37792,2646.2,2645.9,0.3598]
[1727079175932,0.37792,2646.2,2646.0,0.3879]
[1727079183539,0.37793,2646.1,2646.0,0.3879]
[1727079183938,3.58573,2646.1,2646.0,0.3879]
[1727079184645,0.37793,2646.1,2646.0,0.3879]
[1727079185046,3.58573,2646.1,2646.0,0.3879]
[1727079185941,12.987,2646.1,2645.3,30.98452168]
[1727079186147,2.43799,2645.7,2645.6,0.3682]
[1727079186535,5.64579,2645.7,2645.6,0.3682]
[1727079186736,2.43799,2645.7,2645.6,0.3682]
[1727079187348,0.37799,2645.7,2645.6,0.3682]
[1727079188336,4.15799,2645.7,2645.6,0.3682]
[1727079188536,0.37799,2645.7,2645.6,0.3682]
[1727079188940,3.2078,2645.8,2645.6,0.3682]
[1727079189138,3.58578,2645.8,2645.6,0.3682]
[1727079189343,5.5448,2646.2,2645.6,0.3682]
[1727079189546,0.37794,2646.0,2645.6,0.3682]
[1727079189753,0.37793,2646.1,2645.6,0.3682]
[1727079190756,5.5448,2646.2,2645.6,0.3682]
[1727079191349,0.37795,2646.0,2645.6,0.3682]
[1727079192354,0.37796,2645.9,2645.6,0.3682]
[1727079193647,0.37795,2646.0,2645.6,0.3682]
[1727079194047,3.2078,2646.2,2645.8,0.37796]
[1727079194245,4.50489,2646.4,2645.9,0.788]
[1727079194547,4.50489,2646.4,2646.1,3.2078]
[1727079194748,4.50489,2646.4,2646.2,0.3792]
[1727079194749,4.127,2646.4,2646.2,0.3792]
[1727079195152,0.3779,2646.3,2646.2,0.3792]
[1727079195353,0.37793,2646.1,2645.9,0.788]
[1727079195950,0.37794,2646.1,2645.9,0.788]
[1727079196154,0.37796,2646.0,2645.8,0.3792]
[1727079196361,2.43794,2646.1,2645.8,0.3792]
[1727079196656,1.60146,2646.3,2645.8,0.3792]
[1727079196657,0.2767,2646.3,2645.8,0.3792]
[1727079196957,0.37792,2646.2,2645.8,0.3792]
[1727079197863,0.37793,2646.1,2645.8,0.3792]
[1727079198057,0.37796,2645.9,2645.8,0.3792]
[1727079198953,0.37796,2645.9,2645.6,0.3973]
[1727079198954,5.8392,2645.9,2645.4,3.2078]
[1727079199158,0.37797,2645.8,2645.6,0.3902]
[1727079200760,0.37799,2645.7,2645.6,0.3902]
[1727079200956,0.37798,2645.8,2645.6,0.3902]
[1727079202465,0.37799,2645.7,2645.6,0.3902]
[1727079202765,0.37798,2645.8,2645.6,0.3902]
[1727079203459,0.37797,2645.8,2645.6,0.3902]
[1727079203657,3.2078,2646.0,2645.6,0.3902]
[1727079203858,0.37798,2645.8,2645.6,0.3902]
[1727079204159,0.37799,2645.7,2645.6,0.3902]
[1727079204466,0.37799,2645.7,2645.2,4.19232168]
[1727079204467,0.37802,2645.5,2645.2,3.2078]
[1727079204662,0.37802,2645.5,2645.3,0.3599]